bitfinex/quotes_ETHUSD_20251126
["timestamp","ask_amount","ask_price","bid_price","bid_amount"]
[1764199636143,0.30803628,3022.9,3022.8,10.52089685]
[1764199637554,0.30803628,3022.9,3022.8,9.26369747]
[1764199639062,0.3094383,3022.9,3022.8,9.26369747]
[1764199640140,0.3094383,3022.9,3022.8,9.24369747]
[1764199640342,0.3094383,3022.9,3022.8,9.26369747]
[1764199642429,0.209,3023.5,3022.8,15.88007963]
[1764199642659,0.209,3023.5,3023.4,0.02]
[1764199642867,0.51829314,3023.5,3023.4,0.02]
[1764199643234,0.51829314,3023.5,3023.4,0.04]
[1764199643437,0.51829314,3023.5,3023.4,0.02]
[1764199643740,0.51824966,3023.5,3023.2,5.91450639]
[1764199643948,0.30924966,3023.4,3023.2,5.91450639]
[1764199644148,0.30924966,3023.3,3023.2,5.91450639]
[1764199644663,0.30924966,3023.3,3023.1,3.30786002]
[1764199644872,0.30924966,3023.2,3023.1,3.30786002]
[1764199645281,0.30924966,3023.2,3023.1,0.02]
[1764199646501,0.8876685,3024.1,3023.1,4.74379177]
[1764199646641,0.002,3024.3,3024.0,5.93450639]
[1764199646841,0.002,3024.3,3023.9,0.72559411]
[1764199647178,0.002,3024.3,3024.2,0.02]
[1764199647344,0.002,3024.3,3024.2,5.93450639]
[1764199647842,0.002,3024.3,3024.2,0.02]
[1764199648043,0.002,3024.3,3024.2,5.93450639]
[1764199648542,0.002,3024.3,3024.2,9.241166]
[1764199649568,0.4557,3024.3,3023.9,6.61396114]
[1764199649761,0.4557,3024.3,3024.0,5.91450639]
[1764199649965,0.002,3024.3,3024.0,5.91450639]
[1764199650685,0.002,3024.3,3024.2,9.241166]
[1764199651000,0.002,3024.3,3024.2,5.93450639]
[1764199651396,0.002,3024.3,3024.0,9.22137716]
[1764199651687,0.002,3024.3,3023.9,3.30698156]
[1764199651857,0.002,3024.3,3023.8,9.22156891]
[1764199653685,0.002,3024.3,3023.8,12.54866594]
[1764199654991,0.002,3024.3,3024.0,5.91450639]
[1764199655193,0.002,3024.3,3024.2,0.02]
[1764199655500,0.002,3024.3,3024.0,5.91450639]
[1764199658372,0.002,3024.3,3023.8,5.91450639]
[1764199658599,0.6382,3023.9,3023.4,5.91450639]
[1764199659103,0.6382,3023.9,3023.4,9.22203727]
[1764199659886,0.4537,3023.9,3023.4,9.22203727]
[1764199660091,3.76069973,3023.9,3023.4,9.22203727]
[1764199660790,4.23009973,3023.9,3023.4,9.22203727]
[1764199660997,4.23009973,3023.9,3023.4,5.91450639]
[1764199661183,4.41459973,3023.9,3023.2,6.12350639]
[1764199661579,4.41459973,3023.9,3023.2,9.22223879]
[1764199661786,4.41459973,3023.9,3023.2,10.63975253]
[1764199663091,7.72159946,3023.9,3023.2,10.63975253]
[1764199663301,0.4694,3023.8,3023.2,9.22223879]
[1764199663485,0.4694,3023.8,3022.8,9.24366505]
[1764199663797,0.30802001,3023.7,3023.0,5.91450639]
[1764199663994,0.30802001,3023.6,3023.0,5.91450639]
[1764199664304,0.4694,3023.7,3023.0,5.91450639]
[1764199664598,0.30807011,3023.6,3023.0,5.91450639]
[1764199664898,0.4694,3023.7,3023.0,5.91450639]
[1764199665101,6.61485032,3023.5,3022.8,5.91550639]
[1764199665266,0.30810358,3023.4,3022.8,0.001]
[1764199665472,0.30810358,3023.3,3022.8,0.001]
[1764199665796,9.92227548,3023.5,3022.8,0.001]
[1764199665797,0.78287878,3023.2,3022.8,0.001]
[1764199665978,0.4748,3023.2,3022.8,0.001]
[1764199666996,0.6838,3023.2,3022.8,0.001]
[1764199667200,3.30786278,3023.1,3022.8,0.001]
[1764199668378,7.09052556,3023.1,3022.8,0.001]
[1764199668568,0.6625,3022.9,3022.8,0.001]
[1764199668898,0.97062511,3022.9,3022.8,0.001]
[1764199669109,0.97062511,3022.9,3022.4,0.001]
[1764199669110,14.38159878,3022.9,3022.4,0.001]
[1764199669265,0.4795,3022.5,3022.4,0.001]
[1764199669467,0.78762511,3022.5,3022.4,0.001]
[1764199669668,1.26242511,3022.5,3022.4,0.001]
[1764199671479,5.29653865,3022.5,3022.4,0.001]
[1764199676567,5.70204265,3022.5,3022.4,0.001]
[1764199676768,5.93437801,3022.5,3022.4,0.001]
[1764199680900,6.63997989,3022.5,3022.4,0.001]
[1764199681107,5.93437801,3022.5,3022.4,0.001]
[1764199681698,5.93240727,3022.5,3022.4,0.001]
[1764199682278,6.63787397,3022.5,3022.4,0.001]
[1764199682481,5.93240751,3022.5,3022.4,0.001]
[1764199682678,6.04161925,3022.5,3022.4,0.001]
[1764199682889,5.93240751,3022.5,3022.4,0.001]
[1764199683099,5.50356815,3022.5,3022.4,0.001]
[1764199683619,5.90907215,3022.5,3022.4,0.001]
[1764199684782,5.70007215,3022.5,3022.4,0.001]
[1764199684982,5.90907215,3022.5,3022.4,0.001]
[1764199685924,6.00886041,3022.5,3022.4,0.001]
[1764199686807,5.79986041,3022.5,3022.4,0.001]
[1764199686981,6.00886041,3022.5,3022.4,0.001]
[1764199689096,4.81976815,3022.5,3022.4,0.001]
[1764199689418,5.52316815,3022.5,3022.4,0.001]
[1764199691731,5.04136815,3022.5,3022.4,0.001]
[1764199691935,5.53576815,3022.5,3022.4,0.001]
[1764199693906,6.65000274,3022.5,3022.4,0.001]
[1764199694104,0.405504,3022.3,3021.0,0.021]
[1764199694314,0.72559411,3022.4,3021.0,0.021]
[1764199694315,0.72559411,3021.9,3021.0,0.021]
[1764199694620,0.51515461,3021.8,3020.3,5.92160319]
[1764199694800,0.72559411,3021.6,3020.7,0.021]
[1764199695001,0.30615461,3021.5,3020.1,3.31112293]
[1764199695200,0.30615461,3021.5,3020.1,0.021]
[1764199695201,0.5167131,3021.4,3020.1,0.021]
[1764199695392,0.3077131,3021.3,3019.9,0.69659411]
[1764199695595,0.3077131,3021.2,3019.9,0.69659411]
[1764199695806,0.3077131,3021.1,3020.0,0.66181973]
[1764199696003,0.5167131,3021.0,3020.1,5.92160319]
[1764199696216,0.3077131,3020.9,3020.1,5.92160319]
[1764199696412,0.3077131,3020.8,3020.4,5.92160319]
[1764199696612,0.209,3021.0,3020.2,6.622078]
[1764199696820,0.30800851,3020.9,3020.3,0.6622078]
[1764199696993,0.30800851,3020.8,3020.3,0.6622078]
[1764199697323,0.30822692,3020.7,3020.3,0.6622078]
[1764199697523,3.51916781,3021.0,3020.3,0.6622078]
[1764199697725,0.30818436,3020.9,3020.3,0.6622078]
[1764199697920,3.51916781,3021.0,3020.3,0.6622078]
[1764199697921,0.30818436,3020.8,3020.3,0.6622078]
[1764199698126,0.30818436,3020.7,3020.0,1.38741384]
[1764199698326,0.30844257,3020.6,3020.1,3.31112295]
[1764199698538,3.31032619,3020.9,3020.2,0.72559411]
[1764199698734,0.30844245,3020.8,3020.2,0.72559411]
[1764199698924,0.30844245,3020.7,3020.2,0.72559411]
[1764199699097,0.30844245,3020.6,3020.2,1.52656265]
[1764199699298,3.31032619,3020.9,3020.2,1.52656265]
[1764199699499,0.30842214,3020.8,3020.2,1.52656265]
[1764199699733,0.30842214,3020.7,3020.2,1.52656265]
[1764199699923,0.30842214,3020.6,3020.2,1.52656265]
[1764199700241,3.5191728,3021.0,3020.3,0.81488342]
[1764199700411,3.61871709,3020.9,3020.3,0.81488342]
[1764199700602,0.30842164,3020.8,3020.2,4.03657325]
[1764199700802,0.30842164,3020.7,3020.2,0.72559411]
[1764199701004,0.30842164,3020.6,3020.2,0.72559411]
[1764199701219,0.30842164,3020.5,3020.2,0.72559411]
[1764199701520,3.31029545,3020.9,3020.2,0.72559411]
[1764199701729,0.30842375,3020.8,3020.2,0.72559411]
[1764199701896,0.30842375,3020.7,3020.2,0.72559411]
[1764199702098,0.30842375,3020.6,3020.2,0.72559411]
[1764199702326,0.30842375,3020.5,3020.2,0.72559411]
[1764199702525,3.31029545,3020.9,3020.2,3.31101462]
[1764199702725,0.30843002,3020.8,3020.2,3.31101462]
[1764199703046,0.30843002,3020.7,3020.2,3.97323363]
[1764199703334,0.30843002,3020.6,3020.2,3.97323363]
[1764199703538,3.51917092,3021.0,3020.2,3.97323363]
[1764199703703,0.30843348,3020.9,3020.2,3.31101462]
[1764199704025,0.30843348,3020.8,3020.2,6.62205362]
[1764199704237,0.30843348,3020.7,3020.2,6.62205362]
[1764199704434,0.30843348,3020.6,3020.2,3.31101462]
[1764199704610,0.30843348,3020.6,3020.1,3.31112262]
[1764199704611,0.30843348,3020.5,3020.3,0.66221372]
[1764199704811,3.31027661,3020.9,3020.1,0.72559411]
[1764199705012,0.30846126,3020.8,3020.1,0.72559411]
[1764199705221,0.30846126,3020.7,3020.1,0.72559411]
[1764199705404,0.30846126,3020.6,3020.1,0.72559411]
[1764199705610,0.30846126,3020.5,3020.1,0.72559411]
[1764199705935,0.002,3020.6,3020.2,0.73481107]
[1764199706109,0.30849588,3020.5,3020.2,0.73481107]
[1764199706309,0.3085311,3020.4,3020.2,0.73481107]
[1764199706510,0.002,3020.6,3020.2,4.04580992]
[1764199706710,0.30853589,3020.5,3020.2,4.04580992]
[1764199707035,0.30853589,3020.4,3020.2,0.73481107]
[1764199707241,0.002,3020.6,3020.1,3.31108827]
[1764199707535,0.30851869,3020.5,3020.1,3.31108827]
[1764199707734,0.30851869,3020.4,3020.1,3.31108827]
[1764199708037,0.002,3020.6,3020.0,3.31120946]
[1764199708236,0.30851108,3020.5,3019.5,5.09599879]
[1764199708436,0.30851108,3020.4,3019.5,0.001]
[1764199708739,3.61944045,3020.3,3019.5,0.001]
[1764199708941,0.30851108,3020.2,3019.5,0.001]
[1764199709130,0.30851108,3020.1,3019.5,0.001]
[1764199709326,0.30851108,3020.0,3019.5,0.001]
[1764199709512,3.31086494,3020.4,3019.5,0.001]
[1764199709713,0.30831519,3020.3,3019.5,0.001]
[1764199710037,0.30831519,3020.2,3019.5,0.001]
[1764199710234,0.30831519,3020.1,3019.5,0.001]
[1764199710437,0.30831519,3020.0,3019.5,0.001]
[1764199710644,6.62324508,3020.6,3019.5,0.72659411]
[1764199710849,0.30824175,3020.5,3019.5,1.79283631]
[1764199711007,0.30824175,3020.4,3019.5,1.79283631]
[1764199711215,0.30824175,3020.3,3019.5,1.79283631]
[1764199711411,0.30824175,3020.2,3019.5,1.79283631]
[1764199711610,0.002,3020.6,3019.6,1.50405014]
[1764199711806,0.30818406,3020.5,3019.6,1.50405014]
[1764199712109,0.30818406,3020.4,3019.6,1.50405014]
[1764199712316,0.30818406,3020.3,3019.6,1.50405014]
[1764199712515,0.30818406,3020.2,3019.6,1.50405014]
[1764199712707,0.002,3020.6,3019.8,6.62295516]
[1764199713034,0.30812735,3020.5,3019.8,9.93443274]
[1764199713238,0.002,3020.6,3019.8,9.93443274]
[1764199713409,0.30815756,3020.5,3019.8,9.93443274]
[1764199713610,0.002,3020.6,3019.8,9.93443274]
[1764199713807,0.30815708,3020.5,3019.9,1.01783972]
[1764199714027,0.002,3020.6,3020.0,0.21]
[1764199714232,0.3081571,3020.5,3020.0,0.21]
[1764199714416,0.002,3020.6,3020.0,0.21]
[1764199714625,0.30816714,3020.5,3020.0,0.21]
[1764199714840,0.002,3020.6,3020.1,6.62229726]
[1764199715030,0.30816744,3020.5,3020.2,1.01435247]
[1764199715346,0.002,3020.6,3020.2,1.01435247]
[1764199716830,0.002,3020.6,3020.3,6.62185874]
[1764199719448,0.002,3020.6,3020.4,0.209]
[1764199720261,0.002,3020.6,3020.4,0.93459411]
[1764199720442,0.002,3020.6,3020.5,0.75564529]
[1764199721253,0.002,3020.6,3020.5,4.79194954]
[1764199725739,0.002,3020.6,3020.5,6.57518865]
[1764199725963,0.002,3020.6,3020.5,6.98069265]
[1764199726335,0.002,3020.6,3020.5,7.18969265]
[1764199727443,0.002,3020.6,3020.5,5.00094954]
[1764199727934,0.002,3020.6,3020.5,9.39569954]
[1764199729967,0.002,3020.6,3020.5,8.67010543]
[1764199731147,0.002,3020.6,3020.5,8.46110543]
[1764199731346,0.002,3020.6,3020.5,8.67010543]
[1764199731561,0.002,3020.6,3020.5,8.46110543]
[1764199731867,0.002,3020.6,3020.5,7.70546014]
[1764199732332,0.4737,3020.6,3020.5,7.70546014]
[1764199732536,0.002,3020.6,3020.5,7.70546014]
[1764199733150,0.4737,3020.6,3020.5,7.70546014]
[1764199734063,0.9428,3020.6,3020.5,7.70546014]
[1764199734253,0.4737,3020.6,3020.5,7.70546014]
[1764199736248,0.9428,3020.6,3020.5,4.39475]
[1764199736446,0.9428,3020.6,3020.5,7.70546014]
[1764199737772,0.9428,3020.6,3020.5,4.39475]
[1764199740378,4.56195823,3020.6,3020.5,4.39475]
[1764199740575,1.25135769,3020.6,3020.5,4.39475]
[1764199741147,4.56195823,3020.6,3020.5,4.39475]
[1764199741352,1.25135769,3020.6,3020.5,4.39475]
[1764199743064,0.78225769,3020.6,3020.5,4.39475]
[1764199743350,1.25135769,3020.6,3020.5,4.39475]
[1764199747258,4.56195823,3020.6,3020.5,4.39475]
[1764199747682,0.99335769,3020.6,3020.5,4.39475]
[1764199747873,1.45405769,3020.6,3020.5,4.39475]
[1764199749592,1.45405769,3020.6,3020.3,3.3108785]
[1764199749795,0.30855769,3020.5,3020.3,3.3108785]
[1764199750084,0.4738,3020.5,3020.3,3.3108785]
[1764199750493,0.4738,3020.5,3020.1,6.62221315]
[1764199752187,0.4607,3020.2,3020.1,3.31106452]
[1764199752389,0.002,3020.6,3020.1,3.31106452]
[1764199752693,0.30841762,3020.5,3020.2,5.92290128]
[1764199752860,0.002,3020.6,3020.2,5.92290128]
[1764199753065,0.30841436,3020.5,3020.2,5.92290128]
[1764199753361,0.4758,3020.6,3020.2,5.92290128]
[1764199753561,0.30844876,3020.5,3020.2,5.92290128]
[1764199753792,0.4758,3020.6,3020.2,5.92290128]
[1764199753989,0.30845115,3020.5,3020.2,5.92290128]
[1764199754180,0.002,3020.6,3020.2,5.92290128]
[1764199754386,0.30846295,3020.5,3020.3,3.31092937]
[1764199754683,0.002,3020.6,3020.3,3.31092937]
[1764199754883,0.30846304,3020.5,3020.3,3.31092937]
[1764199755066,0.002,3020.6,3020.3,3.31092937]
[1764199755261,0.30846306,3020.5,3020.3,3.31092937]
[1764199755465,0.453,3020.6,3020.3,3.31092937]
[1764199755776,0.002,3020.6,3020.3,6.62185874]
[1764199755962,0.453,3020.6,3020.3,3.31092937]
[1764199756165,0.002,3020.6,3020.3,6.62185874]
[1764199756988,0.002,3020.6,3020.4,5.92290128]
[1764199757382,0.002,3020.6,3020.3,6.62185874]
[1764199757586,0.002,3020.6,3020.3,8.08533474]
[1764199757789,0.002,3020.6,3020.4,5.92290128]
[1764199758489,0.002,3020.6,3020.5,3.31071014]
[1764199763489,0.002,3020.6,3020.5,4.03630425]
[1764199765491,0.002,3020.6,3020.5,4.02830425]
[1764199765701,0.002,3020.6,3020.5,6.2714677]
[1764199766793,0.002,3020.6,3020.5,6.6769717]
[1764199768132,0.002,3020.6,3020.5,6.8859717]
[1764199768348,0.002,3020.6,3020.5,11.2807217]
[1764199771927,0.002,3020.6,3020.5,10.6662177]
[1764199772117,0.002,3020.6,3020.5,10.8752177]
[1764199772926,0.002,3020.6,3020.5,10.6662177]
[1764199773445,0.002,3020.6,3020.5,10.8752177]
[1764199774014,0.002,3020.6,3020.5,10.6662177]
[1764199776823,0.002,3020.6,3020.5,10.8752177]
[1764199777918,0.002,3020.6,3020.5,10.6662177]
[1764199778122,0.002,3020.6,3020.5,10.8752177]
[1764199781958,0.4894,3020.6,3020.5,10.6662177]
[1764199782126,0.002,3020.6,3020.5,16.58911898]
[1764199783041,0.002,3020.6,3020.5,7.69746014]
[1764199783712,0.002,3020.6,3020.5,8.42305425]
[1764199789247,0.002,3020.6,3020.5,10.20629336]
[1764199792652,0.002,3020.6,3020.5,16.1267325]
[1764199795549,0.9795,3020.6,3020.5,9.48069925]
[1764199795728,0.9795,3020.6,3020.5,7.69746014]
[1764199796133,0.9795,3020.6,3020.5,7.69846014]
[1764199796523,1.28927667,3020.6,3020.5,4.39575]
[1764199796718,1.28927667,3020.6,3020.5,7.70646014]
[1764199800755,0.31177667,3020.6,3020.5,7.70646014]
[1764199802752,0.002,3020.6,3020.5,9.1929872]
[1764199803452,0.002,3021.0,3020.6,1.13109811]
[1764199803654,0.002,3021.0,3020.9,5.92043914]
[1764199804745,0.002,3021.0,3020.9,6.12943914]
[1764199804945,0.002,3021.0,3020.9,2.84474072]
[1764199805350,0.002,3021.0,3020.9,4.37030175]
[1764199805546,0.002,3021.0,3020.9,6.15501249]
[1764199806147,0.002,3021.0,3020.9,4.16130175]
[1764199806357,0.9795,3021.0,3020.9,3.31027177]
[1764199807259,0.9795,3021.0,3020.8,6.62075937]
[1764199807462,0.9533,3020.9,3020.8,3.31037802]
[1764199809570,0.9533,3020.9,3020.7,6.62097854]
[1764199809866,0.9533,3020.8,3020.7,3.3104876]
[1764199811145,1.47134351,3020.8,3020.6,4.39475]
[1764199811347,1.26234351,3020.7,3020.6,4.39475]
[1764199812275,4.57283445,3020.7,3020.6,4.39475]
[1764199812671,1.26234351,3020.7,3020.6,4.39475]
[1764199813446,4.57283445,3020.7,3020.6,4.39475]
[1764199816048,5.29842856,3020.7,3020.6,4.39475]
[1764199816651,6.00877113,3020.7,3020.6,4.39475]
[1764199817382,6.00837602,3020.7,3020.6,4.39475]
[1764199817759,6.00837602,3020.7,3020.6,3.56455]
[1764199817964,6.10816428,3020.7,3020.6,3.56455]
[1764199818365,6.00837602,3020.7,3020.6,3.56455]
[1764199818577,6.10816428,3020.7,3020.6,3.56455]
[1764199818878,6.10816428,3020.7,3020.6,4.39475]
[1764199819073,6.00837602,3020.7,3020.6,4.39475]
[1764199819253,5.29842856,3020.7,3020.6,4.39475]
[1764199819786,5.29842856,3020.7,3020.6,3.56455]
[1764199819992,6.00758459,3020.7,3020.6,3.56455]
[1764199820454,5.29842856,3020.7,3020.6,3.56455]
[1764199820650,5.50742856,3020.7,3020.6,3.56455]
[1764199821874,5.60721682,3020.7,3020.6,3.56455]
[1764199822704,5.50742856,3020.7,3020.6,3.56455]
[1764199824182,6.50207899,3020.7,3020.6,3.56455]
[1764199824380,6.90758299,3020.7,3020.6,3.56455]
[1764199824881,7.00737125,3020.7,3020.6,3.56455]
[1764199825078,7.71544334,3020.7,3020.6,3.56455]
[1764199825279,7.71528289,3020.7,3020.6,3.56455]
[1764199826208,7.61549463,3020.7,3020.6,3.56455]
[1764199826405,7.61531137,3020.7,3020.6,3.56455]
[1764199826609,6.29307899,3020.7,3020.6,3.56455]
[1764199826916,4.78183445,3020.7,3020.6,3.56455]
[1764199827083,5.50742856,3020.7,3020.6,3.56455]
[1764199827279,2.19693762,3020.7,3020.6,3.56455]
[1764199827500,2.19693762,3020.7,3020.6,3.921105]
[1764199827501,0.97244351,3020.7,3020.6,3.921105]
[1764199828193,0.6634,3020.7,3020.6,3.921105]
[1764199828408,0.51625237,3020.7,3020.6,3.921105]
[1764199828605,0.209,3020.7,3020.6,3.921105]
[1764199828779,0.51625237,3020.7,3020.6,3.921105]
[1764199829215,1.1813,3020.7,3020.6,3.56455]
[1764199829403,4.79904331,3020.7,3020.6,3.56455]
[1764199833089,4.80104331,3020.7,3020.6,3.56455]
[1764199834219,4.80131008,3020.7,3020.6,3.56455]
[1764199838996,4.10381008,3020.7,3020.6,3.56455]
[1764199839228,1.00231914,3020.7,3020.6,3.56455]
[1764199839420,4.80131008,3020.7,3020.6,3.56455]
[1764199839627,1.00231914,3020.7,3020.6,3.56455]
[1764199839796,0.30951914,3020.7,3020.6,3.56455]
[1764199840134,0.30951914,3020.7,3020.6,4.25218212]
[1764199840713,0.30951914,3020.7,3020.6,3.56455]
[1764199843608,0.30951914,3020.7,3020.6,6.87515054]
[1764199848231,0.78391914,3020.7,3020.6,3.56455]
[1764199848431,1.25061914,3020.7,3020.6,3.56455]
[1764199848606,0.78391914,3020.7,3020.6,3.56455]
[1764199848933,1.25061914,3020.7,3020.6,3.56455]
[1764199849924,0.78391914,3020.7,3020.6,3.56455]
[1764199852049,1.25061914,3020.7,3020.6,3.56455]
[1764199856640,5.28670419,3020.7,3020.6,3.56455]
[1764199860592,0.30951914,3020.7,3020.6,9.84500559]
[1764199860741,0.002,3020.7,3020.6,13.15560613]
[1764199867061,0.002,3020.7,3020.6,13.56111013]
[1764199867264,0.002,3020.7,3020.6,14.28670424]
[1764199874790,0.002,3020.7,3020.6,14.49570424]
[1764199881680,0.002,3021.0,3020.8,0.405504]
[1764199881873,0.002,3021.0,3020.9,7.0549987]
[1764199882072,0.002,3021.0,3020.9,7.93896964]
[1764199882864,0.002,3021.0,3020.9,8.14796964]
[1764199883065,0.002,3021.0,3020.9,11.45824141]
[1764199883479,0.002,3021.0,3020.9,11.05273741]
[1764199886801,0.9532,3021.0,3020.9,4.40324271]
[1764199887005,0.9532,3021.0,3020.9,3.31027177]
[1764199887498,0.4812,3021.0,3020.9,3.31027177]
[1764199890413,0.002,3021.0,3020.9,3.31027177]
[1764199891811,0.4812,3021.0,3020.9,3.31027177]
[1764199892117,0.002,3021.0,3020.9,3.31027177]
[1764199893801,0.4812,3021.0,3020.9,3.31027177]
[1764199894612,0.002,3021.0,3020.9,3.31027177]
[1764199894983,0.9532,3021.0,3020.9,3.31027177]
[1764199895194,0.002,3021.0,3020.9,3.31027177]
[1764199895594,0.9532,3021.0,3020.9,3.31027177]
[1764199895794,1.26274604,3021.0,3020.9,3.31027177]
[1764199896006,0.79074604,3021.0,3020.9,3.31027177]
[1764199896209,0.002,3021.0,3020.9,3.31027177]
[1764199896440,0.31156527,3021.0,3020.9,3.31027177]
[1764199897218,0.31156527,3021.0,3020.9,4.00327826]
[1764199901210,0.002,3021.0,3020.9,4.00327826]
[1764199904014,0.9532,3021.0,3020.9,9.92717885]
[1764199904642,0.002,3021.0,3020.9,9.92717885]
[1764199908149,0.002,3021.0,3020.9,11.05827696]
[1764199908954,0.002,3021.1,3020.9,16.98217755]
[1764199909155,0.002,3021.3,3021.2,12.97889929]
[1764199909351,0.002,3021.3,3021.2,13.18789929]
[1764199910136,0.002,3021.3,3021.2,16.49784235]
[1764199910328,0.002,3021.3,3021.2,18.28295841]
[1764199910531,0.002,3021.3,3021.2,16.49784235]
[1764199910729,0.002,3021.3,3021.2,19.05422622]
[1764199911239,0.002,3021.3,3021.2,18.84522622]
[1764199911457,0.002,3021.3,3021.2,19.05422622]
[1764199912579,0.002,3021.3,3021.2,22.86422622]
[1764199912792,0.002,3021.7,3021.3,1.13109811]
[1764199912950,0.4649,3022.6,3021.8,0.405504]
[1764199913150,0.4649,3022.6,3022.4,5.92390059]
[1764199913346,0.6507,3022.5,3022.4,5.92390059]
[1764199913566,1.1416,3022.5,3022.4,5.92390059]
[1764199914291,1.1416,3022.5,3022.4,9.23252949]
[1764199916549,1.1416,3022.5,3022.4,3.3086289]
[1764199918564,1.1416,3022.5,3022.2,6.6176957]
[1764199918765,0.4909,3022.4,3022.2,7.63126938]
[1764199918970,0.4909,3022.3,3022.2,4.32242153]
[1764199919682,0.9558,3022.3,3022.2,4.32242153]
[1764199919980,0.4909,3022.3,3022.2,3.30884785]
[1764199920379,0.9558,3022.3,3022.2,3.30884785]
[1764199920560,0.9558,3022.3,3022.1,6.61788879]
[1764199920753,0.9558,3022.2,3022.1,3.30893145]
[1764199921367,0.9558,3022.2,3021.8,6.6185717]
[1764199921572,0.4649,3022.1,3021.8,6.6185717]
[1764199921779,0.6894,3021.9,3021.8,3.30928585]
[1764199922388,1.1543,3021.9,3021.5,3.30961442]
[1764199922594,0.4909,3021.6,3021.3,6.61966702]
[1764199922770,0.4909,3021.4,3021.3,3.30983351]
[1764199923178,0.9558,3021.4,3021.3,3.30983351]
[1764199924564,0.4649,3021.7,3021.3,9.92950053]
[1764199924802,0.1985,3021.9,3021.6,5.9151974]
[1764199925189,0.4909,3021.7,3021.6,5.9151974]
[1764199925491,0.9558,3021.7,3021.6,5.9151974]
[1764199925690,0.9558,3021.7,3021.6,6.52761714]
[1764199926390,0.1985,3021.9,3021.6,6.52761714]
[1764199926618,0.6634,3021.9,3021.6,6.52761714]
[1764199926820,0.6634,3021.9,3021.7,6.61879074]
[1764199927420,0.4554,3021.8,3021.7,3.30939537]
[1764199928198,0.9486,3021.8,3021.7,3.30939537]
[1764199928589,0.4932,3022.4,3021.7,11.59469545]
[1764199928796,0.30841942,3022.3,3021.9,5.9151974]
[1764199929016,0.30841942,3022.2,3021.9,5.9151974]
[1764199929216,0.1878,3022.5,3021.9,5.9151974]
[1764199929217,0.4932,3022.3,3021.9,6.1241974]
[1764199929421,0.4932,3022.3,3022.0,0.61241974]
[1764199930027,0.4554,3022.1,3022.0,0.61241974]
[1764199931026,0.4554,3022.1,3022.0,3.92148658]
[1764199931228,0.9486,3022.1,3022.0,3.92148658]
[1764199931523,0.9486,3022.1,3022.0,3.30906684]
[1764199931722,1.25713987,3022.1,3021.3,0.72559411]
[1764199931930,0.1878,3022.5,3021.3,0.72559411]
[1764199931931,0.9486,3022.0,3021.3,0.72559411]
[1764199932106,0.4554,3021.4,3021.3,3.30983351]
[1764199932500,0.9486,3021.4,3021.3,3.30983351]
[1764199933114,0.9486,3021.4,3021.1,6.62110524]
[1764199933300,0.4554,3021.2,3021.1,3.31105262]
[1764199933714,0.9486,3021.2,3021.1,3.99407216]
[1764199934926,0.4554,3021.2,3021.1,3.99407216]
[1764199935227,0.495,3021.5,3021.1,10.6141774]
[1764199936224,0.4993,3021.2,3021.1,3.99407216]
[1764199938631,0.495,3021.4,3021.1,7.30412478]
[1764199938801,0.495,3021.6,3021.2,1.08242802]
[1764199939002,0.6966,3021.9,3021.2,1.08242802]
[1764199939201,0.30861904,3021.8,3021.2,1.08242802]
[1764199939406,0.30861904,3021.7,3021.3,1.5006658]
[1764199939605,0.6966,3021.9,3021.3,1.5006658]
[1764199939811,0.6966,3021.9,3021.4,9.92917188]
[1764199940633,0.495,3021.8,3021.4,9.92917188]
[1764199941405,0.2016,3021.9,3021.4,10.13817188]
[1764199941622,0.6966,3021.9,3021.5,1.49486376]
[1764199941822,0.4993,3021.5,3021.4,3.51872396]
[1764199943261,0.495,3021.7,3021.4,6.82844792]
[1764199943825,0.495,3021.7,3021.4,3.51872396]
[1764199944441,0.495,3021.7,3021.4,0.209]
[1764199944442,0.4993,3021.5,3021.4,0.209]
[1764199944751,0.495,3021.7,3021.4,0.209]
[1764199945051,0.2016,3021.9,3021.5,1.01384669]
[1764199945434,0.6966,3021.9,3021.5,1.01384669]
[1764199945851,0.495,3021.8,3021.6,6.61900978]
[1764199946351,0.2016,3021.9,3021.6,6.61900978]
[1764199946554,0.30884719,3021.8,3021.6,6.61900978]
[1764199946755,0.002,3021.9,3021.7,1.09424361]
[1764199946936,0.30884662,3021.8,3021.7,1.09424361]
[1764199948256,0.30884662,3021.8,3021.7,4.40363898]
[1764199949364,1.30314662,3021.8,3021.7,4.40363898]
[1764199949556,1.30314662,3021.8,3021.7,3.30939537]
[1764199950762,0.30884662,3021.8,3021.6,6.61900978]
[1764199951059,0.002,3021.9,3021.6,6.61900978]
[1764199951263,0.30919314,3021.8,3021.6,6.61900978]
[1764199951469,0.30919314,3021.7,3021.6,3.30950489]
[1764199951671,0.30919314,3021.7,3021.6,4.09369801]
[1764199955942,0.002,3021.9,3021.6,7.4032029]
[1764199956273,0.3092068,3021.8,3021.6,7.4032029]
[1764199956470,0.002,3021.9,3021.6,7.4032029]
[1764199956691,0.30920273,3021.8,3021.7,5.91590067]
[1764199956870,0.30920273,3021.8,3021.7,7.70105366]
[1764199957485,0.30920273,3021.8,3021.7,11.01044903]
[1764199957661,0.80850273,3021.8,3021.7,11.01044903]
[1764199957861,0.30920273,3021.8,3021.7,11.01044903]
[1764199958259,0.80850273,3021.8,3021.7,11.21944903]
[1764199958660,0.30920273,3021.8,3021.7,11.21944903]
[1764199959071,0.002,3021.9,3021.7,14.5288444]
[1764199959279,0.002,3021.9,3021.8,1.53130375]
[1764199959587,0.31114846,3021.9,3021.8,4.8405896]
[1764199959802,0.31114846,3021.9,3021.8,5.2460936]
[1764199959973,0.002,3021.9,3021.8,7.02927555]
[1764199960186,0.002,3021.9,3021.8,7.75486966]
[1764199960480,0.002,3021.9,3021.8,7.75572362]
[1764199960882,0.002,3022.3,3022.2,7.04699878]
[1764199961188,0.002,3022.3,3022.2,7.96069866]
[1764199961361,0.002,3022.3,3022.2,11.26954651]
[1764199963269,0.002,3022.3,3022.2,13.04966492]
[1764199963462,0.002,3022.5,3022.2,16.35851277]
[1764199963694,0.002,3022.5,3022.3,2.18562241]
[1764199963903,0.002,3022.5,3022.4,2.36144539]